bitfinex-derivatives/quotes_BNBF0:USTF0_20250220
["timestamp","ask_amount","ask_price","bid_price","bid_amount"]
[1740009815737,1.08997855,650.61,649.25,1.60511052]
[1740009815938,1.08997855,650.6,649.25,1.60511052]
[1740009816132,1.08997855,650.59,649.25,1.60511052]
[1740009816330,1.08997855,650.58,649.25,1.60511052]
[1740009816534,1.3591518,651.57,649.25,1.60511052]
[1740009816535,1.08997855,650.57,649.25,1.60511052]
[1740009816734,1.08997855,650.56,649.25,1.60511052]
[1740009816932,1.08997855,650.55,649.25,1.60511052]
[1740009817135,1.08997855,650.54,649.25,1.60511052]
[1740009817435,1.08997855,650.53,649.25,1.60511052]
[1740009817632,1.08997855,650.52,649.25,1.60511052]
[1740009817837,1.08997855,650.51,649.25,1.60511052]
[1740009818036,1.08997855,650.5,649.25,1.60511052]
[1740009818241,1.08997855,650.49,649.25,1.60511052]
[1740009818540,1.08997855,650.48,649.25,1.60511052]
[1740009818841,1.08997855,650.47,649.25,1.60511052]
[1740009819140,1.08997855,650.46,649.25,1.60511052]
[1740009819340,1.08997855,650.45,649.25,1.60511052]
[1740009819540,1.08997855,650.44,649.25,1.60511052]
[1740009819741,1.08997855,650.43,649.25,1.60511052]
[1740009820043,1.08997855,650.42,649.25,1.60511052]
[1740009820235,1.08997855,650.41,649.25,1.60511052]
[1740009820438,1.08997855,650.4,649.25,1.60511052]
[1740009820638,1.08997855,650.39,649.25,1.60511052]
[1740009820835,3.26376207,651.67,649.25,1.60511052]
[1740009820836,1.08997855,650.38,649.25,1.60511052]
[1740009821035,1.08997855,650.37,649.25,1.60511052]
[1740009821239,1.08997855,650.36,649.25,1.60511052]
[1740009821440,1.08997855,650.35,649.25,1.60511052]
[1740009821642,1.08997855,650.34,649.25,1.60511052]
[1740009821835,1.08997855,650.33,649.25,1.60511052]
[1740009822035,1.08997855,650.32,649.25,1.60511052]
[1740009822237,1.08997855,650.31,649.25,1.60511052]
[1740009822437,1.08997855,650.3,649.25,1.60511052]
[1740009822641,1.1326265,651.42,649.25,1.60511052]
[1740009822841,0.28269437,651.41,649.25,1.60511052]
[1740009823040,3.26376207,651.6,649.25,1.60511052]
[1740009823041,1.1326265,651.2,649.25,1.60511052]
[1740009823242,0.28269437,651.19,649.25,1.60511052]
[1740009823545,0.28269437,651.18,649.25,1.60511052]
[1740009823739,1.36927264,651.17,649.25,1.60511052]
[1740009823938,1.36927264,651.16,649.25,1.60511052]
[1740009824140,1.36927264,651.15,649.25,1.60511052]
[1740009824344,1.36927264,651.14,649.25,1.60511052]
[1740009824541,1.36927264,651.13,649.25,1.60511052]
[1740009824739,1.36927264,651.12,649.25,1.60511052]
[1740009824942,1.36927264,651.11,649.25,1.60511052]
[1740009825144,1.36927264,651.1,649.25,1.60511052]
[1740009825347,1.36927264,651.09,649.25,1.60511052]
[1740009825648,1.36927264,651.08,649.25,1.60511052]
[1740009825848,1.36927264,651.07,649.25,1.60511052]
[1740009826147,1.36927264,651.06,649.25,1.60511052]
[1740009826347,1.36927264,651.05,649.25,1.60511052]
[1740009826547,1.36927264,651.04,649.25,1.60511052]
[1740009826849,1.36927264,651.03,649.25,1.60511052]
[1740009827147,1.36927264,651.02,649.25,1.60511052]
[1740009827348,1.36927264,651.01,649.25,1.60511052]
[1740009827649,1.36927264,651.0,649.25,1.60511052]
[1740009827843,1.36927264,650.99,649.25,1.60511052]
[1740009828048,1.67650174,650.98,649.27,0.30803825]
[1740009828244,1.1326265,651.19,649.27,0.30803825]
[1740009828245,1.67650646,650.97,649.27,0.30803825]
[1740009828447,1.67651118,650.96,649.27,0.30803825]
[1740009828646,1.67651589,650.95,649.27,0.30803825]
[1740009828950,1.36927264,650.94,649.27,0.30803825]
[1740009829152,1.36927264,650.93,649.27,0.30803825]
[1740009829450,1.36927264,650.92,649.27,0.30803825]
[1740009829750,1.36928309,650.91,649.27,0.30803825]
[1740009829946,1.36928309,650.9,649.27,0.30803825]
[1740009830250,1.36928309,650.89,649.27,0.30803825]
[1740009830550,1.36928309,650.88,649.27,0.30803825]
[1740009830750,1.36928309,650.87,649.27,0.30803825]
[1740009830946,1.36928309,650.86,649.27,0.30803825]
[1740009831148,0.30724325,650.95,649.27,0.30803825]
[1740009831149,1.36928309,650.85,649.27,0.30803825]
[1740009831349,1.36927813,650.84,649.27,0.30803825]
[1740009831548,1.36927813,650.83,649.27,0.30803825]
[1740009831745,1.36927813,650.82,649.27,0.30803825]
[1740009831953,1.36927813,650.81,649.27,0.30803825]
[1740009832251,0.30724325,650.95,649.27,0.30803825]
[1740009832252,1.36927813,650.8,649.27,0.30803825]
[1740009832554,1.36927813,650.79,649.27,0.30803825]
[1740009832749,1.36927813,650.78,649.27,0.30803825]
[1740009832952,0.30733296,650.76,649.27,0.30803825]
[1740009833149,1.3693142,650.75,649.27,0.30803825]
[1740009833348,1.3693142,650.74,649.27,0.30803825]
[1740009833548,1.3693142,650.73,649.27,0.30803825]
[1740009833754,1.3693142,650.72,649.27,0.30803825]
[1740009834050,1.3693142,650.71,649.27,0.30803825]
[1740009834247,1.3693142,650.7,649.27,0.30803825]
[1740009834454,1.3693142,650.69,649.27,0.30803825]
[1740009834655,1.36932822,650.68,649.27,0.30803825]
[1740009834853,1.36932822,650.67,649.27,0.30803825]
[1740009835049,1.36932822,650.66,649.27,0.30803825]
[1740009835249,1.36932822,650.65,649.27,0.30803825]
[1740009835455,1.36932822,650.64,649.27,0.30803825]
[1740009835756,1.36932822,650.63,649.27,0.30803825]
[1740009835956,0.30733296,650.76,649.27,0.30803825]
[1740009835957,1.67672731,650.62,649.27,0.30803825]
[1740009836153,1.08464377,650.61,649.27,0.30803825]
[1740009836351,1.36738966,650.6,649.27,0.30803825]
[1740009836555,1.36738966,650.59,649.27,0.30803825]
[1740009836856,1.67480765,650.58,649.27,0.30803825]
[1740009837054,1.36738966,650.57,649.27,0.30803825]
[1740009837251,1.36738966,650.56,649.27,0.30803825]
[1740009837453,1.67482183,650.55,649.27,0.30803825]
[1740009837653,1.36738966,650.54,649.27,0.30803825]
[1740009837851,1.36738966,650.53,649.27,0.30803825]
[1740009838051,1.36738966,650.52,649.27,0.30803825]
[1740009838256,1.36738966,650.51,649.27,0.30803825]
[1740009838452,1.3670774,650.5,649.27,0.30803825]
[1740009838651,1.3670774,650.49,649.27,0.30803825]
[1740009838854,1.3670774,650.48,649.27,0.30803825]
[1740009839054,1.3670774,650.47,649.27,0.30803825]
[1740009839254,1.3670774,650.46,649.27,0.30803825]
[1740009839455,1.3670774,650.45,649.27,0.30803825]
[1740009839756,1.08433151,650.44,649.27,0.30803825]
[1740009839957,1.36699833,650.43,649.27,0.30803825]
[1740009840157,1.08433151,650.42,649.27,0.30803825]
[1740009840351,1.36700335,650.41,649.27,0.30803825]
[1740009840554,1.08433151,650.4,649.27,0.30803825]
[1740009840757,1.08433151,650.39,649.27,0.30803825]
[1740009840957,1.36686901,650.38,649.27,0.30803825]
[1740009841154,1.36686901,650.37,649.27,0.30803825]
[1740009841353,1.36686901,650.36,649.27,0.30803825]
[1740009841555,1.36686901,650.35,649.27,0.30803825]
[1740009841760,1.36686901,650.34,649.27,0.30803825]
[1740009842059,1.36686901,650.33,649.27,0.30803825]
[1740009842262,1.36686901,650.32,649.27,0.30803825]
[1740009842460,1.36686901,650.31,649.27,0.30803825]
[1740009842660,1.36686901,650.3,649.27,0.30803825]
[1740009842854,1.08417314,650.29,649.27,0.30803825]
[1740009843056,1.08417314,650.28,649.27,0.30803825]
[1740009843257,1.08417314,650.27,649.27,0.30803825]
[1740009843454,1.08417314,650.26,649.27,0.30803825]
[1740009843653,1.08417314,650.25,649.27,0.30803825]
[1740009843855,1.08417314,650.24,649.27,0.30803825]
[1740009844054,0.30743217,650.55,649.27,0.30803825]
[1740009844259,1.36633574,650.54,649.27,0.30803825]
[1740009844460,1.36633574,650.53,649.27,0.30803825]
[1740009844656,1.08363937,650.52,649.27,0.30803825]
[1740009844956,0.28269637,650.51,649.27,0.30803825]
[1740009845157,1.08363937,650.5,649.27,0.30803825]
[1740009845357,0.28269637,650.49,649.27,0.30803825]
[1740009845556,1.08363937,650.48,649.27,0.30803825]
[1740009845857,0.28269637,650.47,649.27,0.30803825]
[1740009846059,1.08411673,650.46,649.27,0.30803825]
[1740009846260,0.30743217,650.55,649.27,0.30803825]
[1740009846563,1.36675775,650.54,649.27,0.30803825]
[1740009846862,1.36675775,650.53,649.27,0.30803825]
[1740009847062,1.36675775,650.52,649.27,0.30803825]
[1740009847263,1.36675775,650.51,649.27,0.30803825]
[1740009847457,1.36675775,650.5,649.27,0.30803825]
[1740009847658,1.08411982,650.49,649.27,0.30803825]
[1740009847859,0.30743217,650.55,649.27,0.30803825]
[1740009848057,1.36744486,650.54,649.27,0.30803825]
[1740009848257,1.08482996,650.53,649.27,0.30803825]
[1740009848461,1.08482996,650.52,649.27,0.30803825]
[1740009848662,1.08515035,650.51,649.27,0.30803825]
[1740009848862,1.08515035,650.5,649.27,0.30803825]
[1740009849062,1.08515035,650.49,649.27,0.30803825]
[1740009849264,1.08515035,650.48,649.27,0.30803825]
[1740009849464,1.08571624,650.47,649.27,0.30803825]
[1740009849658,1.08573284,650.46,649.27,0.30803825]
[1740009849858,0.30743217,650.55,649.27,0.30803825]
[1740009850062,1.08587287,650.54,649.27,0.30803825]
[1740009850256,1.08587287,650.53,649.27,0.30803825]
[1740009850462,1.08587287,650.52,649.27,0.30803825]
[1740009850662,1.08587287,650.51,649.27,0.30803825]
[1740009850963,0.30743217,650.55,649.27,0.30803825]
[1740009851561,1.1326265,650.87,649.27,0.30803825]
[1740009851761,1.36922246,650.86,649.27,0.30803825]
[1740009851964,1.36922246,650.85,649.27,0.30803825]
[1740009852162,1.36922246,650.84,649.27,0.30803825]
[1740009852361,1.36922246,650.83,649.27,0.30803825]
[1740009852559,1.36921354,650.82,649.27,0.30803825]
[1740009852762,1.36921354,650.81,649.27,0.30803825]
[1740009852960,1.08663856,650.8,649.27,0.30803825]
[1740009853163,0.28257498,650.79,649.27,0.30803825]
[1740009853364,1.08663856,650.78,649.27,0.30803825]
[1740009853566,0.28257498,650.77,649.27,0.30803825]
[1740009853766,1.08663856,650.76,649.27,0.30803825]
[1740009853965,0.28257498,650.75,649.27,0.30803825]
[1740009854266,1.08663856,650.74,649.27,0.30803825]
[1740009854667,1.08663856,650.73,649.27,0.30803825]
[1740009854868,1.36927261,650.72,649.27,0.30803825]
[1740009855069,1.36927261,650.71,649.27,0.30803825]
[1740009855268,1.36927261,650.7,649.27,0.30803825]
[1740009855468,1.36927261,650.69,649.27,0.30803825]
[1740009855669,1.36927261,650.68,649.27,0.30803825]
[1740009855969,1.36927261,650.67,649.27,0.30803825]
[1740009856168,1.36927261,650.66,649.27,0.30803825]
[1740009856364,1.36927261,650.65,649.27,0.30803825]
[1740009856669,1.36927261,650.64,649.27,0.30803825]
[1740009856869,1.36927261,650.63,649.27,0.30803825]
[1740009857063,1.36927261,650.62,649.27,0.30803825]
[1740009857267,1.1326265,651.07,649.27,0.30803825]
[1740009857268,1.36927261,650.61,649.27,0.30803825]
[1740009857466,1.36927261,650.6,649.27,0.30803825]
[1740009857773,1.36927261,650.59,649.27,0.30803825]
[1740009857968,0.28263405,650.59,649.27,0.30803825]
[1740009858172,1.1326265,650.75,649.27,0.30803825]
[1740009860371,1.09048785,650.74,649.27,0.30803825]
[1740009860571,1.09048785,650.73,649.27,0.30803825]
[1740009860790,1.37303893,650.72,649.27,0.30803825]
[1740009861076,1.37303893,650.71,649.27,0.30803825]
[1740009861276,1.37303893,650.7,649.27,0.30803825]
[1740009861572,1.37308455,650.69,649.27,0.30803825]
[1740009861776,1.37309599,650.68,649.27,0.30803825]
[1740009861970,1.37309599,650.67,649.27,0.30803825]
[1740009862170,1.37309599,650.66,649.27,0.30803825]
[1740009862370,1.09048785,650.65,649.27,0.30803825]
[1740009862573,1.09048785,650.64,649.27,0.30803825]
[1740009862771,1.09048785,650.63,649.27,0.30803825]
[1740009863077,1.09250083,650.62,649.27,0.30803825]
[1740009863271,1.09250083,650.61,649.27,0.30803825]
[1740009863473,0.30701687,651.43,649.27,0.30803825]
[1740009863474,1.09250083,650.6,649.27,0.30803825]
[1740009863678,1.09250083,650.59,649.27,0.30803825]
[1740009863870,1.09250083,650.58,649.27,0.30803825]
[1740009864070,1.1326265,651.38,649.27,0.30803825]
[1740009864270,0.30704986,651.36,649.27,0.30803825]
[1740009864473,1.37618627,651.35,649.27,0.30803825]
[1740009864670,0.307064,651.33,649.27,0.30803825]
[1740009864870,1.37617643,651.32,649.27,0.30803825]
[1740009865071,0.30707815,651.3,649.27,0.30803825]
[1740009865270,1.37617643,651.29,649.27,0.30803825]
[1740009865469,1.37617643,651.28,649.27,0.30803825]
[1740009865669,1.37617643,651.27,649.27,0.30803825]
[1740009865872,1.37617643,651.26,649.27,0.30803825]
[1740009866072,0.30707815,651.3,649.27,0.30803825]
[1740009866073,1.37617643,651.25,649.27,0.30803825]
[1740009866273,0.30711115,651.23,649.27,0.30803825]
[1740009866474,1.09364637,651.22,649.27,0.30803825]
[1740009866674,1.37618671,651.21,649.27,0.30803825]
[1740009866872,1.37618671,651.2,649.27,0.30803825]
[1740009867176,0.30713474,651.18,649.27,0.30803825]
[1740009867377,1.37618671,651.17,649.27,0.30803825]
[1740009867572,0.30714889,651.15,649.27,0.30803825]
[1740009867880,1.37618671,651.14,649.27,0.30803825]
[1740009868080,0.30716304,651.12,649.27,0.30803825]
[1740009868282,1.37623749,651.11,649.27,0.30803825]
[1740009868579,1.37623749,651.1,649.27,0.30803825]
[1740009868775,1.37623749,651.09,649.27,0.30803825]
[1740009868980,0.30716304,651.12,649.27,0.30803825]
[1740009868981,1.37727937,651.08,649.27,0.30803825]
[1740009869181,1.37727937,651.07,649.27,0.30803825]
[1740009869481,1.37727937,651.06,649.27,0.30803825]
[1740009869681,1.37727937,651.05,649.27,0.30803825]
[1740009869982,1.37731107,651.04,649.27,0.30803825]
[1740009870176,1.37731107,651.03,649.27,0.30803825]
[1740009870374,1.37731107,651.02,649.27,0.30803825]
[1740009870681,1.68452601,651.01,649.27,0.30803825]
[1740009870981,0.30722438,650.99,649.27,0.30803825]
[1740009871181,1.37731107,650.98,649.27,0.30803825]
[1740009871480,1.1326265,651.41,649.27,0.30803825]
[1740009871481,0.30723854,650.96,649.27,0.30803825]
[1740009871782,1.37731107,650.95,649.27,0.30803825]
[1740009871977,1.37731107,650.94,649.27,0.30803825]
[1740009872176,0.30725742,650.92,649.27,0.30803825]
[1740009872481,1.37731107,650.91,649.27,0.30803825]
[1740009872681,0.30727158,650.89,649.27,0.30803825]
[1740009872881,1.37731107,650.88,649.27,0.30803825]
[1740009873080,0.30728574,650.86,649.27,0.30803825]
[1740009873282,1.37736433,650.85,649.27,0.30803825]
[1740009873581,1.37736433,650.84,649.27,0.30803825]
[1740009873781,0.30728574,650.86,649.27,0.30803825]
[1740009873782,1.37736433,650.83,649.27,0.30803825]
[1740009873981,0.30728574,650.86,649.27,0.30803825]
[1740009873982,1.37736433,650.82,649.27,0.30803825]
[1740009874181,0.30728574,650.86,649.27,0.30803825]
[1740009874182,1.68467368,650.81,649.27,0.30803825]
[1740009874383,1.37736433,650.8,649.27,0.30803825]
[1740009874586,1.68468312,650.79,649.27,0.30803825]
[1740009874786,1.68468784,650.78,649.27,0.30803825]
[1740009874987,1.37736433,650.77,649.27,0.30803825]
[1740009875186,1.37736433,650.76,649.27,0.30803825]
[1740009875383,1.37736433,650.75,649.27,0.30803825]
[1740009875588,1.37736433,650.74,649.27,0.30803825]
[1740009875781,1.37736433,650.73,649.27,0.30803825]
[1740009875984,1.37736433,650.72,649.27,0.30803825]
[1740009876187,1.37736433,650.71,649.27,0.30803825]
[1740009876388,1.37736433,650.7,649.27,0.30803825]
[1740009876688,1.37736433,650.69,649.27,0.30803825]
[1740009876888,1.09468825,650.68,649.27,0.30803825]
[1740009877187,1.09517607,650.67,649.27,0.30803825]
[1740009877382,1.37777502,650.66,649.27,0.30803825]
[1740009877586,1.37777502,650.65,649.27,0.30803825]
[1740009877786,1.37777502,650.64,649.27,0.30803825]
[1740009877986,1.09517607,650.63,649.27,0.30803825]
[1740009878185,1.1326265,651.13,649.27,0.30803825]
[1740009878387,1.68536695,651.12,649.27,0.30803825]
[1740009878584,1.37820391,651.11,649.27,0.30803825]
[1740009878783,1.37820391,651.1,649.27,0.30803825]
[1740009878984,1.37820391,651.09,649.27,0.30803825]
[1740009879184,1.37820391,651.08,649.27,0.30803825]
[1740009879386,1.37820391,651.07,649.27,0.30803825]
[1740009879588,1.37820391,651.06,649.27,0.30803825]
[1740009879788,1.37820391,651.05,649.27,0.30803825]
[1740009879985,1.37817701,651.04,649.27,0.30803825]
[1740009880184,1.37817701,651.03,649.27,0.30803825]
[1740009880389,1.68538723,651.02,649.27,0.30803825]
[1740009880589,1.68539195,651.01,649.27,0.30803825]
[1740009880790,1.40294026,651.0,649.27,0.30803825]
[1740009880985,1.0957206,650.99,649.27,0.30803825]
[1740009881188,1.0957206,650.98,649.27,0.30803825]
[1740009881389,1.0957206,650.97,649.27,0.30803825]
[1740009881593,0.30721966,651.0,649.27,0.30803825]
[1740009881594,1.0957206,650.96,649.27,0.30803825]
[1740009881783,1.0957206,650.95,649.27,0.30803825]
[1740009881987,1.0957206,650.94,649.27,0.30803825]
[1740009882183,1.0957206,650.93,649.27,0.30803825]
[1740009882389,1.37826876,650.92,649.27,0.30803825]
[1740009882690,1.6855309,650.91,649.27,0.30803825]
[1740009882890,1.68553562,650.9,649.27,0.30803825]
[1740009883085,1.37826876,650.89,649.27,0.30803825]
[1740009883291,1.37826876,650.88,649.27,0.30803825]
[1740009883591,1.68554978,650.87,649.27,0.30803825]
[1740009883793,1.6855545,650.86,649.27,0.30803825]
[1740009883988,0.28254816,650.85,649.27,0.30803825]
[1740009884186,1.40045682,650.84,649.27,0.30803825]
[1740009884491,1.3757098,650.83,649.27,0.30803825]
[1740009884691,1.68301443,650.82,649.27,0.30803825]
[1740009884887,1.68301915,650.81,649.27,0.30803825]
[1740009885086,1.68310525,650.8,649.27,0.30803825]
[1740009885392,1.68310997,650.79,649.27,0.30803825]
[1740009885586,1.37579118,650.78,649.27,0.30803825]
[1740009885786,1.68311942,650.77,649.27,0.30803825]
[1740009885990,1.68312414,650.76,649.27,0.30803825]
[1740009886188,1.68312886,650.75,649.27,0.30803825]
[1740009886385,1.37579118,650.74,649.27,0.30803825]
[1740009886591,1.37579118,650.73,649.27,0.30803825]
[1740009886794,1.09316164,650.72,649.27,0.30803825]
[1740009886987,1.09316164,650.71,649.27,0.30803825]
[1740009887188,1.09316164,650.7,649.27,0.30803825]
[1740009887492,1.09316164,650.69,649.27,0.30803825]
[1740009887788,1.09316164,650.68,649.27,0.30803825]
[1740009887990,1.09316164,650.67,649.27,0.30803825]
[1740009888193,0.30733768,650.75,649.27,0.30803825]
[1740009888194,1.09316164,650.66,649.27,0.30803825]
[1740009888389,1.09316164,650.65,649.27,0.30803825]
[1740009888595,1.09316164,650.64,649.27,0.30803825]
[1740009888795,1.09316164,650.63,649.27,0.30803825]
[1740009889095,1.09316164,650.62,649.27,0.30803825]
[1740009889290,1.09316164,650.61,649.27,0.30803825]
[1740009889494,1.09316164,650.6,649.27,0.30803825]
[1740009889794,1.09316164,650.59,649.27,0.30803825]
[1740009889993,1.09316164,650.58,649.27,0.30803825]
[1740009890295,1.09316164,650.57,649.27,0.30803825]
[1740009890497,1.09316164,650.56,649.27,0.30803825]
[1740009890690,1.09316164,650.55,649.27,0.30803825]
[1740009890892,0.30733768,650.75,649.27,0.30803825]
[1740009890893,1.09316164,650.54,649.27,0.30803825]
[1740009891093,1.09316164,650.53,649.27,0.30803825]
[1740009891289,1.09316164,650.52,649.27,0.30803825]
[1740009891589,1.09316164,650.51,649.27,0.30803825]
[1740009891792,1.09316164,650.5,649.27,0.30803825]
[1740009891993,1.09316164,650.49,649.27,0.30803825]
[1740009892190,1.09316164,650.48,649.27,0.30803825]
[1740009892392,1.09316164,650.47,649.27,0.30803825]
[1740009892590,1.09316164,650.46,649.27,0.30803825]
[1740009892790,1.09316164,650.45,649.27,0.30803825]
[1740009892994,1.09316164,650.44,649.27,0.30803825]
[1740009893190,1.09316164,650.43,649.27,0.30803825]
[1740009893394,1.09316164,650.42,649.27,0.30803825]
[1740009893697,1.09316164,650.41,649.27,0.30803825]
[1740009893898,1.09271435,650.4,649.27,0.30803825]
[1740009894096,1.09271435,650.39,649.27,0.30803825]
[1740009894297,1.09271435,650.38,649.27,0.30803825]
[1740009894597,1.09271435,650.37,649.27,0.30803825]
[1740009894789,1.09271435,650.36,649.27,0.30803825]
[1740009894994,1.09271435,650.35,649.27,0.30803825]
[1740009895193,1.09271435,650.34,649.27,0.30803825]
[1740009895394,0.30733768,650.75,649.27,0.30803825]
[1740009895395,1.09271435,650.33,649.27,0.30803825]
[1740009895590,1.09271435,650.32,649.27,0.30803825]
[1740009895797,1.09318249,650.31,649.27,0.30803825]
[1740009895994,0.30733768,650.75,649.27,0.30803825]
[1740009896195,1.37611569,650.74,649.27,0.30803825]
[1740009896393,1.68346282,650.73,649.27,0.30803825]
[1740009896596,1.37611569,650.72,649.27,0.30803825]
[1740009896795,1.37611569,650.71,649.27,0.30803825]
[1740009897095,1.37611569,650.7,649.27,0.30803825]
[1740009897300,1.37611569,650.69,649.27,0.30803825]
[1740009897496,1.37611569,650.68,649.27,0.30803825]
[1740009897700,1.09347307,650.67,649.27,0.30803825]
[1740009897900,1.09347307,650.66,649.27,0.30803825]
[1740009898100,1.1326265,650.88,649.27,0.30803825]
[1740009898294,1.09469086,650.87,649.27,0.30803825]
[1740009898496,1.1326265,650.91,649.27,0.30803825]
[1740009899303,1.09459872,650.9,649.27,0.30803825]
[1740009899504,1.09459872,650.89,649.27,0.30803825]
[1740009899802,1.09459872,650.88,649.27,0.30803825]
[1740009900004,1.09459872,650.87,649.27,0.30803825]
[1740009900202,1.09459872,650.86,649.27,0.30803825]
[1740009900403,1.09459872,650.85,649.27,0.30803825]
[1740009900702,1.37713443,650.84,649.27,0.30803825]
[1740009900903,1.09459872,650.83,649.27,0.30803825]
[1740009901203,1.37713468,650.82,649.27,0.30803825]
[1740009901396,1.37713468,650.81,649.27,0.30803825]
[1740009901600,1.37713468,650.8,649.27,0.30803825]
[1740009901795,1.37713468,650.79,649.27,0.30803825]
[1740009901997,1.37677073,650.78,649.27,0.30803825]
[1740009902197,1.37677073,650.77,649.27,0.30803825]
[1740009902400,1.37677073,650.76,649.27,0.30803825]
[1740009902601,0.3072999,650.83,649.27,0.30803825]
[1740009902602,1.09423477,650.75,649.27,0.30803825]
[1740009902799,1.09423477,650.74,649.27,0.30803825]
[1740009902998,1.09423477,650.73,649.27,0.30803825]
[1740009903202,1.09423477,650.72,649.27,0.30803825]
[1740009903402,1.09423477,650.71,649.27,0.30803825]
[1740009903603,1.09423477,650.7,649.27,0.30803825]
[1740009903798,1.09423477,650.69,649.27,0.30803825]
[1740009904000,1.09423477,650.68,649.27,0.30803825]
[1740009904305,1.09423477,650.67,649.27,0.30803825]
[1740009904501,1.09423477,650.66,649.27,0.30803825]
[1740009904705,1.09423477,650.65,649.27,0.30803825]
[1740009904905,1.09423477,650.64,649.27,0.30803825]
[1740009905205,1.09423477,650.63,649.27,0.30803825]
[1740009905399,0.3072999,650.83,649.27,0.30803825]
[1740009905400,1.09423477,650.62,649.27,0.30803825]
[1740009905601,1.09423477,650.61,649.27,0.30803825]
[1740009905803,1.09423477,650.6,649.27,0.30803825]
[1740009906003,1.09423477,650.59,649.27,0.30803825]
[1740009906203,1.09423477,650.58,649.27,0.30803825]
[1740009906405,1.09423477,650.57,649.27,0.30803825]
[1740009906606,1.09423477,650.56,649.27,0.30803825]
[1740009906805,0.3072999,650.83,649.27,0.30803825]
[1740009906806,1.09423477,650.55,649.27,0.30803825]
[1740009907002,1.09423477,650.54,649.27,0.30803825]
[1740009907202,1.09423477,650.53,649.27,0.30803825]
[1740009907400,1.09423477,650.52,649.27,0.30803825]
[1740009907607,0.3072999,650.83,649.27,0.30803825]
[1740009907807,1.09722762,650.82,649.27,0.30803825]
[1740009908005,1.09705051,650.81,649.27,0.30803825]
[1740009908203,1.09705051,650.8,649.27,0.30803825]
[1740009908404,1.09705051,650.79,649.27,0.30803825]
[1740009908607,1.09705051,650.78,649.27,0.30803825]
[1740009908802,1.09705051,650.77,649.27,0.30803825]
[1740009909003,1.09705051,650.76,649.27,0.30803825]
[1740009909207,1.09705051,650.75,649.27,0.30803825]
[1740009909407,1.09705051,650.74,649.27,0.30803825]
[1740009909605,1.09705051,650.73,649.27,0.30803825]
[1740009909804,1.37967283,650.72,649.27,0.30803825]
[1740009910006,1.37967283,650.71,649.27,0.30803825]
[1740009910208,1.37967283,650.7,649.27,0.30803825]
[1740009910404,1.37967283,650.69,649.27,0.30803825]
[1740009910604,1.37967283,650.68,649.27,0.30803825]
[1740009910808,1.37967283,650.67,649.27,0.30803825]
[1740009911009,0.3072999,650.83,649.27,0.30803825]
[1740009911010,1.37967283,650.66,649.27,0.30803825]
[1740009911206,1.37967283,650.65,649.27,0.30803825]
[1740009911405,1.37967283,650.64,649.27,0.30803825]
[1740009911611,1.37967283,650.63,649.27,0.30803825]
[1740009911907,1.37967283,650.62,649.27,0.30803825]
[1740009912113,1.37967283,650.61,649.27,0.30803825]
[1740009912308,1.37967283,650.6,649.27,0.30803825]
[1740009912515,1.37967283,650.59,649.27,0.30803825]
[1740009912714,1.37980978,650.58,649.27,0.30803825]
[1740009912914,0.3072999,650.83,649.27,0.30803825]
[1740009912915,1.37980978,650.57,649.27,0.30803825]
[1740009913114,1.37980978,650.56,649.27,0.30803825]
[1740009913315,1.37980978,650.55,649.27,0.30803825]
[1740009913512,0.28275927,650.54,649.27,0.30803825]
[1740009913717,1.09705051,650.53,649.27,0.30803825]
[1740009913917,0.28275927,650.52,649.27,0.30803825]
[1740009914114,1.37980978,650.52,649.27,0.30803825]
[1740009914313,1.37980978,650.51,649.27,0.30803825]
[1740009914511,1.37980978,650.5,649.27,0.30803825]
[1740009914712,0.28275927,650.49,649.27,0.30803825]
[1740009914909,0.30746525,650.48,649.27,0.30803825]
[1740009915115,1.09705051,650.47,649.27,0.30803825]
[1740009915314,1.09705051,650.46,649.27,0.30803825]
[1740009915517,1.09705051,650.45,649.27,0.30803825]
[1740009915716,1.09705051,650.44,649.27,0.30803825]
[1740009915917,1.09705051,650.43,649.27,0.30803825]
[1740009916113,1.37977963,650.42,649.27,0.30803825]
[1740009916317,0.30746525,650.48,649.27,0.30803825]
[1740009916318,1.37977963,650.41,649.27,0.30803825]
[1740009916518,1.37977963,650.4,649.27,0.30803825]
[1740009916718,1.37977963,650.39,649.27,0.30803825]
[1740009916920,1.37977963,650.38,649.27,0.30803825]
[1740009917114,1.37977963,650.37,649.27,0.30803825]
[1740009917315,1.09705051,650.36,649.27,0.30803825]
[1740009917518,1.09705051,650.35,649.27,0.30803825]
[1740009917720,1.09705051,650.34,649.27,0.30803825]
[1740009918019,1.37979771,650.33,649.27,0.30803825]
[1740009918220,1.09705051,650.32,649.27,0.30803825]
[1740009918420,1.09705051,650.31,649.27,0.30803825]
[1740009918623,0.30746525,650.48,649.27,0.30803825]
[1740009918624,1.09705051,650.3,649.27,0.30803825]
[1740009918820,0.30746525,650.48,649.27,0.30803825]
[1740009918821,1.09705051,650.29,649.27,0.30803825]
[1740009919120,1.09705051,650.28,649.27,0.30803825]
[1740009919320,1.09705051,650.27,649.27,0.30803825]
[1740009919517,1.09705051,650.26,649.27,0.30803825]
[1740009919822,1.09705051,650.25,649.27,0.30803825]
[1740009920023,1.09705051,650.24,649.27,0.30803825]
[1740009920222,1.37985488,650.23,649.27,0.30803825]
[1740009920424,1.37986462,650.22,649.27,0.30803825]